bitfinex/quotes_ETHUSD_20251125
["timestamp","ask_amount","ask_price","bid_price","bid_amount"]
[1764085358891,0.4933,2904.4,2903.8,6.88852668]
[1764085359093,0.4933,2904.3,2904.1,0.1]
[1764085359587,0.4721,2904.2,2904.1,0.1]
[1764085359812,0.0004,2904.6,2904.0,0.1]
[1764085360136,0.4937,2904.6,2904.2,0.1]
[1764085360417,0.4937,2904.6,2904.3,3.44317047]
[1764085360623,0.4721,2904.4,2904.2,3.54324481]
[1764085360918,0.4721,2904.4,2904.3,0.223]
[1764085361115,0.4933,2904.4,2904.3,0.223]
[1764085361289,0.9654,2904.4,2904.3,0.223]
[1764085361685,0.0004,2904.6,2904.3,0.223]
[1764085361886,0.4721,2904.4,2904.3,0.223]
[1764085362095,0.4721,2904.4,2903.8,0.001]
[1764085362292,0.8218,2904.3,2903.9,0.223]
[1764085362494,0.00121,2904.3,2903.9,0.223]
[1764085362701,0.0004,2904.6,2903.9,7.11021194]
[1764085362911,3.27028337,2904.6,2903.9,3.44356719]
[1764085363107,6.71313288,2904.6,2903.9,0.223]
[1764085363300,6.71313288,2904.6,2903.8,3.54470941]
[1764085363498,0.002,2904.7,2903.9,0.223]
[1764085363820,6.88741246,2904.7,2903.9,0.223]
[1764085364022,0.1812,2904.0,2903.8,0.001]
[1764085364223,10.33011869,2904.7,2903.8,0.001]
[1764085364224,0.1269,2903.9,2903.8,0.001]
[1764085364723,3.62604475,2903.9,2903.8,0.001]
[1764085365894,4.35163886,2903.9,2903.8,0.001]
[1764085366093,0.0573,2903.6,2903.0,0.001]
[1764085366314,6.88942472,2903.0,2902.7,0.001]
[1764085366596,0.2527,2902.8,2902.7,0.001]
[1764085367093,0.2552,2902.8,2902.7,0.001]
[1764085367314,0.2527,2902.8,2902.7,0.001]
[1764085367828,0.2552,2902.8,2902.7,0.001]
[1764085368326,0.2544,2902.8,2902.7,0.001]
[1764085368517,3.6993497,2902.8,2902.7,0.001]
[1764085369525,0.97999411,2902.8,2902.7,0.001]
[1764085369824,0.2519,2902.8,2902.7,0.001]
[1764085370324,0.1861,2903.0,2902.7,0.001]
[1764085371649,0.1849,2903.1,2902.7,0.001]
[1764085372145,0.068,2902.8,2902.7,0.001]
[1764085372309,0.1849,2903.1,2902.7,0.001]
[1764085372509,0.068,2902.8,2902.7,0.001]
[1764085374139,0.1849,2903.1,2902.7,0.001]
[1764085374710,0.068,2903.0,2902.7,0.001]
[1764085376422,0.10158449,2903.0,2902.7,0.001]
[1764085376845,0.068,2902.8,2902.7,0.001]
[1764085377542,3.44476474,2903.0,2902.7,0.001]
[1764085377743,0.068,2902.8,2902.7,0.001]
[1764085378048,0.1849,2903.1,2902.7,0.001]
[1764085378513,3.69749786,2903.1,2902.7,0.001]
[1764085378710,3.51273649,2903.0,2902.7,0.001]
[1764085378944,6.95747298,2903.0,2902.7,0.001]
[1764085379119,0.068,2902.8,2902.7,0.001]
[1764085380234,3.62954201,2903.1,2902.7,0.001]
[1764085380439,0.068,2902.8,2902.7,0.001]
[1764085380738,0.291,2902.8,2902.7,0.001]
[1764085380937,4.46154381,2902.8,2902.7,0.001]
[1764085381347,0.291,2902.8,2902.7,0.001]
[1764085381549,3.5129497,2902.8,2902.7,0.001]
[1764085381922,0.068,2902.8,2902.7,0.001]
[1764085382127,3.5129497,2902.8,2902.7,0.001]
[1764085382825,4.2721283,2902.8,2902.7,0.001]
[1764085383027,0.79359411,2902.8,2902.7,0.001]
[1764085383355,4.46154381,2902.8,2902.7,0.001]
[1764085384435,4.4951283,2902.8,2902.7,0.001]
[1764085384635,4.46154381,2902.8,2902.7,0.001]
[1764085384842,0.291,2902.8,2902.7,0.001]
[1764085385661,3.7359497,2902.8,2902.7,0.001]
[1764085386047,3.5129497,2902.8,2902.7,0.001]
[1764085386264,0.068,2902.8,2902.7,0.001]
[1764085386647,3.5129497,2902.8,2902.7,0.001]
[1764085387543,0.0692,2903.6,2902.7,0.9814]
[1764085387745,0.002,2903.0,2902.7,0.4988]
[1764085389775,0.002,2903.0,2902.9,0.4978]
[1764085390560,0.002,2903.0,2902.7,0.001]
[1764085391291,0.002,2903.0,2902.9,0.4978]
[1764085391863,0.002,2903.0,2902.7,0.001]
[1764085392175,0.0012,2903.0,2902.7,0.001]
[1764085392544,0.0012,2903.0,2902.7,0.4836]
[1764085392960,0.0012,2903.0,2902.8,3.4449497]
[1764085393158,0.0012,2903.0,2902.9,0.4978]
[1764085393789,0.0012,2903.0,2902.7,3.44602889]
[1764085393961,0.0012,2903.0,2902.7,0.001]
[1764085393962,0.0692,2902.8,2902.7,0.001]
[1764085394363,0.39151246,2902.8,2902.7,0.001]
[1764085394560,0.0692,2902.8,2902.7,0.001]
[1764085395479,0.39201423,2902.8,2902.7,0.001]
[1764085395646,0.32281423,2902.8,2902.7,0.001]
[1764085395850,0.0012,2903.0,2902.7,0.9814]
[1764085396286,0.0012,2903.0,2902.7,0.4988]
[1764085396457,0.0012,2903.0,2902.9,0.4978]
[1764085398860,0.0012,2903.0,2902.9,0.4978]
[1764085399275,0.0012,2903.0,2902.9,3.94263103]
[1764085399684,0.0012,2903.0,2902.9,0.4978]
[1764085399859,0.0012,2903.0,2902.9,3.94263103]
[1764085400389,0.0012,2903.0,2902.9,4.40663103]
[1764085400566,0.0012,2903.0,2902.9,0.9618]
[1764085400758,0.0012,2903.0,2902.9,3.94263103]
[1764085401178,0.0012,2903.0,2902.9,0.4978]
[1764085401387,0.0012,2903.0,2902.7,0.001]
[1764085401759,0.0692,2902.8,2902.7,0.001]
[1764085402006,0.39192119,2902.8,2902.7,0.001]
[1764085402299,0.61492119,2902.8,2902.7,0.001]
[1764085403488,0.39192119,2902.8,2902.7,0.001]
[1764085403870,3.83687089,2902.8,2902.7,0.001]
[1764085404187,3.87045538,2902.8,2902.7,0.001]
[1764085404382,0.39192119,2902.8,2902.7,0.001]
[1764085404589,3.83687089,2902.8,2902.7,0.001]
[1764085404791,0.0012,2903.0,2902.7,0.9202]
[1764085404958,0.0012,2903.0,2902.9,0.4562]
[1764085405967,0.0012,2903.0,2902.9,0.001]
[1764085406971,0.0704,2903.0,2902.9,0.001]
[1764085407694,3.83775155,2903.0,2902.9,0.001]
[1764085407895,3.87133604,2903.0,2902.9,0.001]
[1764085408191,4.59693015,2903.0,2902.9,0.001]
[1764085409960,4.56334566,2903.0,2902.9,0.001]
[1764085410160,4.59693015,2903.0,2902.9,0.001]
[1764085412067,4.56334566,2903.0,2902.9,0.001]
[1764085413700,4.59693015,2903.0,2902.9,0.001]
[1764085414099,1.1186333,2903.0,2902.9,0.001]
[1764085414303,1.2724333,2903.0,2902.9,0.001]
[1764085414597,0.0012,2903.0,2902.9,0.001]
[1764085414898,0.0012,2903.0,2902.9,0.4562]
[1764085415097,0.0012,2903.0,2902.9,0.9202]
[1764085416310,0.0004,2903.0,2902.9,0.9202]
[1764085417878,0.0004,2903.0,2902.9,0.4562]
[1764085419612,0.0004,2903.0,2902.9,4.36503103]
[1764085419810,0.0004,2903.0,2902.9,4.46503103]
[1764085420610,0.0004,2903.0,2902.9,0.001]
[1764085420611,0.0869,2903.0,2902.9,0.001]
[1764085421718,0.5584,2903.0,2902.9,0.001]
[1764085422088,1.82954089,2903.0,2902.9,0.001]
[1764085422293,5.30783774,2903.0,2902.9,0.001]
[1764085423015,5.27425325,2903.0,2902.9,0.001]
[1764085423320,4.71625325,2903.0,2902.9,0.001]
[1764085423882,4.49325325,2903.0,2902.9,0.001]
[1764085424080,0.0004,2903.0,2902.9,0.9202]
[1764085424492,0.0004,2903.0,2902.9,4.36503103]
[1764085424884,0.0004,2903.0,2902.9,0.9202]
[1764085425101,0.0004,2903.0,2902.9,4.36503103]
[1764085425303,0.0004,2903.0,2902.9,4.77053503]
[1764085425614,0.0004,2903.0,2902.9,4.87053503]
[1764085427123,0.0004,2903.0,2902.9,4.46503103]
[1764085428898,0.0004,2903.0,2902.9,4.87053503]
[1764085429625,0.0004,2903.0,2902.9,5.59612914]
[1764085430924,0.0004,2903.0,2902.9,8.29625945]
[1764085431225,0.0004,2903.0,2902.9,7.78181114]
[1764085432297,0.0004,2903.0,2902.9,5.59612914]
[1764085432503,0.0004,2903.0,2902.9,11.60769014]
[1764085432699,0.002,2903.3,2903.2,0.405504]
[1764085432912,0.002,2903.3,2903.2,9.28642249]
[1764085433311,0.002,2903.3,2903.2,4.39107211]
[1764085433538,0.002,2903.3,2903.2,8.23638111]
[1764085434199,0.002,2903.3,2903.2,11.68085617]
[1764085434399,0.002,2903.3,2903.2,16.02039655]
[1764085434596,0.002,2904.6,2904.5,0.1]
[1764085434802,0.002,2904.6,2904.5,1.2076]
[1764085436306,0.002,2904.6,2904.5,5.05603737]
[1764085437008,0.002,2904.6,2904.5,5.27803737]
[1764085438732,0.002,2904.6,2904.5,6.00363148]
[1764085440259,0.0012,2904.6,2904.5,6.00363148]
[1764085440936,0.002,2905.2,2904.9,0.405504]
[1764085441138,0.1814,2906.8,2906.4,0.1]
[1764085441638,0.1379,2907.0,2906.4,0.405504]
[1764085441840,0.1379,2907.0,2906.7,0.1]
[1764085442147,0.1379,2907.0,2906.4,0.405504]
[1764085442148,0.1053,2906.5,2906.4,0.1]
[1764085442359,0.4789,2906.9,2906.5,3.44056425]
[1764085442526,0.4789,2906.9,2906.5,3.54056425]
[1764085442705,0.4789,2906.9,2906.5,0.1]
[1764085442908,0.1379,2907.0,2906.5,0.1]
[1764085443228,0.72559411,2907.9,2906.6,0.4997]
[1764085443229,0.1731,2907.3,2906.6,0.4997]
[1764085443412,0.1731,2907.3,2906.4,7.20333975]
[1764085443607,0.4789,2907.2,2906.4,7.20333975]
[1764085444022,0.4789,2907.2,2906.4,3.76265712]
[1764085444222,0.4789,2907.2,2906.4,7.20333975]
[1764085446460,3.91807831,2907.7,2907.0,0.1]
[1764085446765,0.4789,2907.6,2907.0,0.1]
[1764085446922,0.0704,2907.1,2906.9,0.222]
[1764085447122,0.03358449,2907.5,2906.9,0.222]
[1764085447353,0.4789,2907.6,2906.9,0.222]
[1764085447543,3.91819708,2907.6,2906.9,0.222]
[1764085447956,0.4789,2907.5,2906.8,0.1]
[1764085448254,0.0704,2906.9,2906.6,3.44044588]
[1764085448434,0.0704,2906.9,2906.7,0.222]
[1764085448631,0.4789,2907.5,2906.7,0.222]
[1764085448830,0.2425,2906.8,2905.9,0.6872]
[1764085449036,0.0017,2906.7,2906.2,0.1]
[1764085449422,0.1711,2906.8,2906.2,6.98183516]
[1764085449622,0.4789,2907.1,2906.4,0.1]
[1764085449823,0.1731,2907.2,2906.5,0.322]
[1764085450023,0.1731,2907.2,2906.7,0.1]
[1764085450455,0.652,2907.2,2906.7,0.1]
[1764085450854,0.4789,2907.1,2906.7,0.1]
[1764085451060,0.4789,2907.1,2906.6,3.44041178]
[1764085451658,0.4789,2907.1,2906.6,0.222]
[1764085451959,0.0704,2906.7,2906.6,0.222]
[1764085452133,0.0704,2906.7,2906.5,0.222]
[1764085452337,0.4748,2906.6,2905.8,4.16688457]
[1764085452551,0.4748,2906.6,2905.9,0.1]
[1764085452765,0.2545,2905.9,2905.5,0.1]
[1764085452934,0.18,2906.0,2905.7,0.322]
[1764085453258,0.18,2906.0,2905.6,3.44154142]
[1764085453430,0.18,2906.0,2905.6,0.1]
[1764085453626,0.6589,2906.0,2905.6,0.1]
[1764085454030,0.18,2906.0,2905.6,0.1]
[1764085454976,0.6589,2906.0,2905.7,3.44151151]
[1764085455171,0.72559411,2906.8,2905.7,3.44151151]
[1764085455172,3.44048901,2906.6,2905.7,6.88302302]
[1764085455339,7.35989702,2906.6,2905.7,6.88302302]
[1764085455665,0.4789,2906.5,2905.7,6.88302302]
[1764085456961,0.4789,2906.5,2906.0,3.44115622]
[1764085457131,0.4789,2906.5,2906.0,6.88231244]
[1764085457336,0.4789,2906.9,2906.2,0.1]
[1764085458488,3.83689275,2907.2,2906.3,0.7217]
[1764085458642,0.3971,2907.2,2906.5,0.1]
[1764085458849,3.83686988,2907.2,2906.5,0.1]
[1764085459048,4.31576988,2907.2,2906.5,3.54044735]
[1764085460561,0.4759,2907.1,2906.5,3.54044735]
[1764085460747,0.4759,2907.1,2906.5,3.44044735]
[1764085460949,0.651,2907.2,2906.7,3.44032751]
[1764085461487,0.0733,2906.8,2906.6,3.66237116]
[1764085461687,0.4719,2907.1,2906.6,3.66237116]
[1764085461889,0.0773,2906.7,2906.5,3.66248648]
[1764085462185,0.4719,2907.1,2906.5,3.66248648]
[1764085463367,0.1751,2907.2,2906.6,0.1]
[1764085463552,0.1751,2907.2,2906.5,7.56605073]
[1764085463752,0.1751,2907.2,2906.7,0.1]
[1764085464283,0.1743,2907.2,2906.7,0.1]
[1764085464793,0.002,2907.2,2907.1,0.7467]
[1764085464991,0.002,2907.2,2907.1,1.4317]
[1764085465403,0.002,2907.2,2907.1,4.87155415]
[1764085465716,0.002,2907.2,2906.8,0.322]
[1764085465910,0.002,2907.2,2907.1,0.5661]
[1764085466391,0.002,2907.2,2907.1,1.0291]
[1764085467265,0.002,2907.2,2907.1,4.46895415]
[1764085467515,0.002,2907.2,2907.1,15.95004326]
[1764085467666,0.002,2907.8,2907.7,0.1]
[1764085467863,0.32097197,2909.3,2908.7,0.405504]
[1764085468166,0.4759,2909.8,2909.3,0.1]
[1764085468403,0.4759,2909.8,2908.8,0.8656]
[1764085468566,0.1819,2910.2,2908.9,0.463]
[1764085468767,0.1819,2910.2,2909.6,0.405504]
[1764085468991,0.1819,2910.4,2909.8,0.1]
[1764085469379,0.1819,2910.4,2908.8,0.1806]
[1764085469380,0.6381,2909.9,2909.1,0.1]
[1764085469593,0.1779,2909.9,2909.2,0.222]
[1764085470168,0.6538,2909.9,2909.2,0.222]
[1764085470397,0.4759,2909.8,2909.2,0.222]
[1764085470808,0.4759,2909.8,2908.9,3.4377256]
[1764085470970,0.0742,2909.3,2908.9,3.6597256]
[1764085471308,0.1779,2909.9,2909.1,6.8749785]
[1764085471503,0.1779,2909.9,2909.4,0.1]
[1764085471704,0.1819,2910.4,2909.8,0.4661]
[1764085471924,0.1819,2910.9,2910.3,0.6467]
[1764085472081,0.1819,2910.9,2910.5,0.1]
[1764085472408,0.6573,2911.2,2910.5,0.1]
[1764085472645,0.4602,2910.6,2910.2,0.222]
[1764085472795,0.4602,2910.6,2910.0,0.1806]
[1764085472796,0.03358449,2911.1,2910.1,0.222]
[1764085472995,0.1814,2911.2,2910.2,0.463]
[1764085473197,0.222,2911.5,2910.2,0.463]
[1764085473424,1.20149411,2911.4,2910.6,3.43571772]
[1764085473934,0.222,2911.5,2910.6,3.65771772]
[1764085474142,0.002,2911.2,2910.3,0.1]
[1764085474352,0.2552,2910.7,2910.3,0.222]
[1764085474529,0.002,2911.2,2910.7,0.1]
[1764085475535,0.002,2911.2,2910.8,6.8709633]
[1764085475741,0.002,2911.2,2911.1,0.6467]
[1764085476131,0.002,2911.2,2910.9,0.222]
[1764085476496,0.0909,2911.2,2910.8,0.222]
[1764085476835,0.002,2911.2,2911.0,0.1]
[1764085476995,0.002,2911.2,2910.5,3.4357885]
[1764085477199,0.002,2911.2,2910.6,0.222]
[1764085477499,0.002,2911.2,2910.7,6.87119936]
[1764085477700,0.002,2911.2,2911.1,0.6467]
[1764085477901,0.002,2911.2,2911.1,0.9687]
[1764085478110,0.002,2911.2,2911.1,1.4317]
[1764085478839,0.002,2911.2,2911.0,0.1]
[1764085479146,0.0753,2911.2,2910.7,6.97119936]
[1764085479447,0.4719,2911.1,2910.7,3.43559968]
[1764085480127,0.2603,2910.8,2910.4,0.322]
[1764085480332,6.8721389,2911.2,2910.4,0.222]
[1764085480531,0.4759,2911.1,2910.4,0.222]
[1764085480855,0.4759,2911.1,2910.0,7.15341247]
[1764085481033,0.4759,2911.1,2910.1,0.222]
[1764085481549,0.4759,2911.0,2910.2,0.1]
[1764085481732,3.91118647,2911.0,2910.3,3.43607188]
[1764085481932,0.1816,2910.9,2910.2,3.43616302]
[1764085482337,0.1816,2910.9,2910.2,6.87235297]
[1764085482533,0.002,2911.2,2910.2,6.97235297]
[1764085482776,0.002,2911.2,2910.5,0.1]
[1764085483133,3.43702467,2911.2,2910.5,0.1]
[1764085483334,0.002,2911.2,2910.5,0.1]
[1764085483774,0.002,2911.2,2910.6,6.87143544]
[1764085484751,0.002,2911.2,2910.8,0.1]
[1764085485670,0.002,2911.2,2910.8,0.563]
[1764085485836,0.002,2911.2,2910.9,3.43536363]
[1764085486038,0.002,2911.2,2910.8,0.1]
[1764085486039,0.002,2911.2,2910.8,3.53543391]
[1764085486238,0.002,2911.2,2910.8,3.43543391]
[1764085486438,0.002,2911.2,2910.8,3.53543391]
[1764085486834,0.6409,2910.9,2910.3,0.1]
[1764085487039,0.6409,2910.9,2910.1,6.87261606]
[1764085487262,0.0898,2910.8,2910.1,6.87261606]
[1764085487454,0.0898,2910.8,2910.1,3.65730803]
[1764085487705,0.0009,2910.2,2909.7,0.1]
[1764085487862,3.43559968,2910.7,2909.6,6.87379708]
[1764085488173,7.34629936,2910.7,2909.8,0.1]
[1764085488348,0.4759,2910.7,2909.8,0.1]
[1764085488872,0.1807,2910.9,2909.9,0.221]
[1764085489037,3.91139838,2910.8,2909.9,0.221]
[1764085489240,7.34689676,2910.8,2909.9,0.221]
[1764085489438,0.4759,2910.7,2909.9,0.221]
[1764085489869,3.91156844,2910.7,2910.0,3.43642611]
[1764085490071,3.91156844,2910.7,2909.9,0.221]
[1764085490072,7.34723688,2910.7,2909.9,3.6575106]
[1764085490275,0.4593,2910.6,2909.9,7.09405481]
[1764085490765,0.0908,2910.0,2909.7,0.221]
[1764085491158,0.0935,2909.8,2909.5,3.53701666]
[1764085491357,0.4593,2910.6,2909.5,6.87403332]
[1764085491569,0.4593,2910.6,2909.8,0.473]
[1764085491952,0.4593,2910.6,2910.0,3.43642611]
[1764085492176,7.33087264,2910.6,2909.3,3.43718354]
[1764085492365,7.33087264,2910.6,2909.4,0.321]
[1764085492580,0.4593,2910.5,2909.5,0.221]
[1764085493077,0.4593,2910.5,2909.7,0.1]
[1764085493848,3.89489968,2910.7,2909.8,6.87332462]
[1764085494254,3.89489968,2910.7,2910.0,0.1]
[1764085494476,0.4593,2910.7,2910.0,0.1]
[1764085494951,0.4593,2910.7,2909.8,6.87332462]
[1764085495218,0.4593,2910.7,2909.8,6.97332462]
[1764085496100,0.4593,2910.7,2909.9,0.221]
[1764085496258,0.4593,2910.7,2909.9,0.321]
[1764085496665,3.8949411,2910.7,2909.9,0.321]
[1764085497004,7.3305822,2910.7,2909.9,0.221]
[1764085497199,0.78009521,2910.6,2909.8,7.35422462]
[1764085497358,0.32079521,2910.5,2909.9,0.1]
[1764085497559,0.4593,2910.6,2909.9,0.1]
[1764085497755,0.32078103,2910.5,2909.8,3.43666231]
[1764085497971,0.4593,2910.6,2909.8,6.87332462]
[1764085498263,0.221,2910.8,2910.0,0.1]
[1764085498474,0.221,2910.8,2909.9,0.4809]
[1764085498475,0.32091963,2910.7,2910.1,0.2913]
[1764085498678,0.32091963,2910.6,2910.1,0.1913]
[1764085499019,0.1807,2910.9,2910.1,0.5123]
[1764085499223,0.002,2911.2,2910.2,0.61226189]
[1764085499382,0.002,2911.2,2910.4,0.1]
[1764085499582,0.002,2911.2,2910.7,0.1]
[1764085500023,0.002,2911.2,2910.7,3.53557009]
[1764085500319,0.002,2911.2,2910.8,0.221]
[1764085500521,0.002,2911.2,2910.8,0.321]
[1764085500820,0.002,2911.2,2910.8,0.7989]
[1764085501182,0.002,2911.2,2911.1,0.6478]
[1764085501379,0.002,2911.2,2911.1,0.7478]
[1764085501581,0.002,2911.2,2911.1,1.2257]
[1764085501813,0.002,2911.2,2911.1,14.28340211]
[1764085502124,0.002,2911.5,2911.4,3.94027764]
[1764085502276,0.002,2911.5,2911.4,4.39827764]
[1764085502481,0.002,2911.5,2911.4,4.87617764]
[1764085502824,0.002,2911.5,2911.4,5.60177175]
[1764085503126,0.002,2911.5,2911.4,13.88199575]
[1764085503281,0.002,2911.5,2911.4,13.65507575]
[1764085504140,0.002,2911.5,2911.4,11.97105075]
[1764085504278,0.0006,2911.5,2911.4,11.97105075]
[1764085504633,0.18033434,2913.2,2912.9,0.1]
[1764085504836,0.18033434,2913.2,2912.3,0.405504]
[1764085504837,0.18033434,2913.2,2913.1,0.7478]
[1764085504978,0.18033434,2913.2,2913.1,1.374304]
[1764085505179,0.18033434,2913.2,2913.1,1.2257]
[1764085505435,0.18033434,2913.2,2913.1,1.4467]
[1764085505578,0.18033434,2913.2,2913.1,1.852204]
[1764085505777,0.1839,2914.8,2913.1,17.57915611]
[1764085506082,0.1839,2914.8,2914.3,0.1]
[1764085506420,0.463,2915.4,2914.2,0.321]
[1764085506636,0.463,2915.4,2914.3,0.1]
[1764085506936,0.463,2915.4,2914.4,0.6677]
[1764085507140,4.07207392,2916.0,2914.9,0.1]
[1764085507309,0.6427,2916.0,2915.2,0.1]
[1764085507519,0.21818449,2916.6,2915.2,0.1]
[1764085507836,0.21818449,2916.6,2915.0,0.4779]
[1764085507837,0.6476,2916.6,2915.6,0.1]
[1764085507995,0.6476,2916.6,2915.8,3.52952163]
[1764085508199,0.6476,2916.6,2915.3,0.6452]
[1764085508200,0.463,2916.5,2915.4,3.53004293]
[1764085508394,0.25458449,2916.4,2915.1,0.1]
[1764085508596,0.4407,2915.4,2914.8,0.1]
[1764085508819,0.4407,2915.4,2914.6,0.94659411]
[1764085508820,0.1718,2915.4,2914.6,0.94659411]
[1764085509021,0.1718,2915.4,2915.0,0.1]
[1764085509222,0.1846,2915.5,2914.7,0.1]
[1764085509421,0.1846,2915.5,2915.0,0.1]
[1764085509634,0.1846,2915.5,2914.8,0.1]
[1764085509804,0.002,2915.4,2915.0,0.1]
[1764085509997,0.002,2915.4,2914.5,0.405504]
[1764085510225,0.002,2915.4,2914.6,0.6989]
[1764085510433,0.002,2915.4,2914.6,0.72559411]
[1764085510608,0.002,2915.4,2915.1,0.1]
[1764085510808,0.002,2915.4,2914.7,0.6989]
[1764085510809,0.002,2915.4,2915.3,0.7478]
[1764085511211,0.002,2915.4,2915.3,1.631204]
[1764085511410,0.002,2915.4,2915.3,1.1257]
[1764085511608,0.002,2915.4,2915.3,1.4467]
[1764085512021,0.002,2915.4,2915.3,5.28238271]
[1764085512225,0.0012,2915.4,2915.3,4.87687871]
[1764085512999,0.0012,2915.4,2915.3,4.17797871]
[1764085513204,0.0012,2915.4,2915.3,4.39897871]
[1764085513625,0.0012,2915.4,2915.3,0.1]
[1764085513812,0.2701,2915.4,2915.1,0.1]
[1764085514021,0.2701,2915.4,2914.4,0.1]
[1764085514022,0.1874,2914.7,2914.4,0.1]
[1764085514334,0.461,2915.3,2914.4,0.1]
[1764085514633,0.461,2915.3,2914.3,0.221]
[1764085515153,0.0012,2915.4,2914.3,0.221]
[1764085515154,0.0012,2915.4,2915.3,0.1]
[1764085515311,0.0012,2915.4,2915.3,0.321]
[1764085515504,0.0012,2915.4,2915.3,1.662404]
[1764085515698,0.0012,2915.4,2915.3,1.2569]
[1764085516099,0.0012,2915.4,2915.3,5.81817682]
[1764085516912,0.0012,2915.4,2915.3,5.59717682]
[1764085517116,0.0012,2915.4,2915.3,5.81817682]
[1764085517322,0.0012,2915.4,2915.3,8.36065582]
[1764085517530,0.0012,2915.4,2915.3,3.478379]
[1764085517846,0.0012,2915.4,2915.3,3.98817871]
[1764085518149,0.0012,2915.4,2915.3,4.68707871]
[1764085518514,0.0012,2915.4,2915.3,5.41267282]
[1764085519032,0.0012,2915.4,2915.3,4.20917871]
[1764085519232,0.0012,2915.4,2915.3,4.68707871]
[1764085519435,0.0012,2915.4,2915.3,7.47761882]
[1764085519634,0.0012,2915.4,2915.3,10.70331482]
[1764085520149,0.0012,2915.4,2915.3,4.71377282]
[1764085520308,0.0012,2915.4,2915.3,5.82857682]
[1764085520506,0.0012,2915.4,2915.3,13.76888182]
[1764085520803,0.221,2917.5,2915.3,13.76888182]
[1764085520804,0.4619,2917.4,2916.7,0.1]
[1764085521021,0.1287,2916.9,2916.6,0.221]
[1764085521202,0.1287,2916.9,2916.3,0.1]
[1764085521401,0.1287,2916.9,2916.4,0.221]
[1764085521632,0.4619,2917.6,2916.6,0.1]
[1764085521939,0.4619,2917.6,2916.5,0.1]
[1764085522249,0.4619,2917.6,2916.5,3.64976735]
[1764085522447,3.88937463,2917.6,2916.6,0.221]
[1764085522613,3.88937463,2917.6,2917.1,0.1]
[1764085522614,0.4619,2917.6,2917.1,0.1]
[1764085522814,0.4619,2917.5,2916.6,0.221]
[1764085523033,0.4619,2917.5,2916.6,0.1]
[1764085523454,0.412,2916.7,2916.5,3.42874967]
[1764085523742,0.1287,2916.9,2916.6,0.1]
[1764085524115,0.4619,2917.2,2916.6,0.1]
[1764085524342,0.1287,2916.9,2916.3,0.321]
[1764085524506,0.4619,2917.5,2916.8,0.1]
[1764085524709,0.4619,2917.5,2916.8,0.221]
[1764085525036,0.4056,2918.0,2916.9,0.4883]
[1764085525037,0.6465,2918.0,2916.9,0.4883]
[1764085525334,0.4619,2917.9,2916.5,0.72559411]
[1764085525534,0.4619,2917.9,2916.6,0.221]
[1764085525737,0.4619,2917.9,2917.2,0.1]
[1764085526138,0.2146,2917.3,2916.7,6.85706448]
[1764085526435,3.42735716,2917.7,2916.8,0.221]
[1764085526609,7.31662873,2917.7,2916.7,6.85706448]
[1764085526810,0.4619,2917.6,2916.7,7.07806448]
[1764085527542,0.4619,2917.6,2916.7,10.50659672]
[1764085527837,0.4619,2917.9,2917.4,0.1]
[1764085528210,0.4619,2917.9,2917.5,6.85518422]
[1764085528733,0.4619,2917.9,2917.4,0.1]
[1764085528734,0.4619,2917.9,2917.4,3.52764857]
[1764085528944,0.4619,2917.9,2917.4,6.95535817]
[1764085528945,0.4639,2917.9,2917.4,6.95535817]
[1764085529533,0.4639,2917.9,2917.4,3.52764857]
[1764085529729,0.2146,2917.5,2917.4,3.5277096]
[1764085529929,0.4639,2917.9,2917.4,3.5277096]
[1764085530135,0.4639,2917.9,2917.4,6.9554192]
[1764085530339,0.4639,2917.9,2917.4,3.5277096]
[1764085530518,0.4639,2917.9,2917.4,6.9554192]
[1764085530716,0.4639,2917.9,2917.4,3.5277096]
[1764085530924,0.4639,2917.9,2917.3,3.7488271]
[1764085531123,0.002,2917.9,2917.6,0.1]
[1764085531518,0.1172,2917.9,2917.7,0.221]
[1764085531716,0.4845,2917.7,2916.8,0.1]
[1764085531948,0.6804,2916.9,2916.7,0.221]
[1764085532151,0.2631,2917.7,2916.7,0.221]
[1764085532323,6.85471432,2917.7,2916.8,3.4284147]
[1764085532523,0.4619,2917.6,2916.7,3.64951417]
[1764085532732,0.4619,2917.6,2916.3,0.221]
[1764085532733,0.4814,2916.8,2916.3,0.221]
[1764085533052,0.4814,2916.8,2916.4,0.1]
[1764085533348,0.1981,2916.9,2916.3,0.221]
[1764085533549,0.1981,2916.9,2916.5,0.1]
[1764085533851,0.1981,2916.9,2916.5,0.321]
[1764085534050,0.1981,2916.9,2916.5,0.1]
[1764085534224,0.66,2916.9,2916.6,0.221]
[1764085534425,0.1981,2916.9,2916.6,3.64964979]
[1764085534821,0.4619,2917.2,2916.6,7.07829958]
[1764085535045,0.4619,2917.2,2916.8,0.1]
[1764085535350,0.15078449,2917.9,2917.2,0.1]
[1764085535351,0.5791,2917.9,2917.2,0.1]
[1764085535553,0.78077329,2917.8,2917.2,0.321]
[1764085535848,0.2833,2917.3,2917.2,0.221]
[1764085536051,0.2832,2917.3,2917.2,0.221]
[1764085536254,0.7425,2917.3,2916.6,3.52864979]